fUST/lending_fUST_20250427
["ID","MTS","AMOUNT","RATE_DAILY","PERIOD"]
[359126477,1745722241128,-400.0,0.00016986,2]
[359126478,1745722241138,-400.0,0.00016986,2]
[359126479,1745722241148,-728.92,0.00016986,2]
[359126480,1745722241158,-400.0,0.00016986,2]
[359126481,1745722241168,-400.0,0.00016986,2]
[359126482,1745722241179,-400.0,0.00016986,2]
[359126483,1745722241189,-400.0,0.00016986,2]
[359126484,1745722241198,-400.0,0.00016986,2]
[359126485,1745722241207,-612.11,0.00016986,2]
[359126486,1745722241217,-839.52,0.00016986,2]
[359126487,1745722241227,-400.0,0.00016986,2]
[359126488,1745722241236,-400.0,0.00016986,2]
[359126489,1745722241246,-2000.0,0.00016986,2]
[359126490,1745722241255,-400.0,0.0001726,2]
[359126491,1745722241265,-400.0,0.0001726,2]
[359126492,1745722241274,-400.0,0.0001726,2]
[359126493,1745722241284,-400.0,0.0001726,2]
[359126494,1745722241294,-400.0,0.0001726,2]
[359126495,1745722241303,-400.0,0.0001726,2]
[359126496,1745722241313,-400.0,0.0001726,2]
[359126497,1745722241322,-403.7,0.0001726,2]
[359126498,1745722241332,-400.0,0.0001726,2]
[359126499,1745722241342,-400.0,0.0001726,2]
[359126500,1745722241351,-400.0,0.0001726,2]
[359126501,1745722241361,-400.0,0.0001726,2]
[359126502,1745722241370,-400.0,0.0001726,2]
[359126503,1745722241380,-375.87378382,0.0001726,2]
[359126504,1745722241389,-400.0,0.0001726,2]
[359126505,1745722241399,-400.0,0.0001726,2]
[359126506,1745722241410,-400.0,0.0001726,2]
[359126507,1745722241419,-400.0,0.0001726,2]
[359126508,1745722241429,-856.04,0.0001726,2]
[359126509,1745722241438,-332.15317168,0.0001726,2]
[359126510,1745722241447,-400.0,0.0001726,2]
[359126511,1745722241462,-400.0,0.0001726,2]
[359126512,1745722241472,-558.03,0.0001726,2]
[359126513,1745722241481,-400.0,0.0001726,2]
[359126514,1745722241491,-400.0,0.0001726,2]
[359126515,1745722241500,-400.0,0.0001726,2]
[359126516,1745722241509,-400.0,0.0001726,2]
[359126517,1745722241519,-797.05,0.0001726,2]
[359126518,1745722241529,-400.0,0.0001726,2]
[359126519,1745722241538,-400.0,0.0001726,2]
[359126520,1745722241548,-389.45232564,0.0001726,2]
[359126521,1745722241561,-400.0,0.0001726,2]
[359126522,1745722241570,-400.0,0.0001726,2]
[359126523,1745722241583,-400.0,0.0001726,2]
[359126524,1745722241592,-400.0,0.0001726,2]
[359126525,1745722241603,-400.0,0.0001726,2]
[359126526,1745722241612,-500.0,0.0001726,2]
[359126527,1745722241622,-1899.42,0.0001726,2]
[359126528,1745722241631,-400.0,0.0001726,2]
[359126529,1745722241641,-400.0,0.0001726,2]
[359126530,1745722241651,-728.92,0.0001726,2]
[359126531,1745722241660,-400.0,0.0001726,2]
[359126532,1745722241669,-400.0,0.0001726,2]
[359126533,1745722241678,-400.0,0.0001726,2]
[359126534,1745722241687,-400.0,0.0001726,2]
[359126535,1745722241697,-476.50078941,0.0001726,2]
[359126536,1745722241707,-612.11,0.0001726,2]
[359126537,1745722241716,-839.52,0.0001726,2]
[359126538,1745722241725,-400.0,0.0001726,2]
[359126539,1745722241735,-500.0,0.0001726,2]
[359126540,1745722241744,-506.39040914,0.00017353,2]
[359126541,1745722241753,-500.0,0.00017353,2]
[359126542,1745722241762,-501.5230089,0.00017353,2]
[359126543,1745722241772,-500.0,0.00017353,2]
[359126544,1745722241781,-503.06968605,0.00017353,2]
[359126545,1745722241790,-553.5410833,0.00017404,2]
[359126546,1745722241799,-500.0,0.00017404,2]
[359126547,1745722241809,-448.80131538,0.00017404,2]
[359126548,1745722241818,-500.0,0.00017411,2]
[359126549,1745722241827,-503.38473043,0.00017411,2]
[359126550,1745722241837,-500.0,0.00017411,2]
[359126551,1745722241846,-440.78240339,0.00017425,2]
[359126552,1745722241855,-502.37532784,0.00017427,2]
[359126553,1745722241865,-500.0,0.00017427,2]
[359126554,1745722241874,-503.48000615,0.00017427,2]
[359126555,1745722241883,-502.12035174,0.00017452,2]
[359126556,1745722241893,-500.75479727,0.00017452,2]
[359126557,1745722241902,-186.87783329,0.00017452,2]
[359126558,1745722241912,-501.47968579,0.00017452,2]
[359126559,1745722241921,-500.0,0.00017452,2]
[359126560,1745722241931,-500.0,0.00017452,2]
[359126561,1745722241940,-500.0,0.00017452,2]
[359126562,1745722241949,-512.72733146,0.00017452,2]
[359126563,1745722241959,-505.80311082,0.00017452,2]
[359126564,1745722241968,-500.0,0.00017452,2]
[359126565,1745722241977,-840.47993636,0.00017464,2]
[359126566,1745722241986,-160.0,0.00017464,2]
[359126567,1745722241995,-160.0,0.00017464,2]
[359126568,1745722242005,-160.0,0.00017464,2]
[359126569,1745722242015,-421.1409203,0.00017464,2]
[359126570,1745722242024,-160.0,0.00017464,2]
[359126571,1745722242034,-160.0,0.00017464,2]
[359126572,1745722242044,-12584.55399671,0.00017464,2]
[359126573,1745722242055,-500.0,0.00017471,2]
[359126574,1745722242064,-503.5598633,0.00017471,2]
[359126575,1745722242073,-502.24757619,0.00017471,2]
[359126576,1745722242083,-508.4093756,0.00017471,2]
[359126577,1745722242093,-500.94325776,0.00017471,2]
[359126578,1745722242104,-400.0,0.00017534,2]
[359126579,1745722242114,-400.0,0.00017534,2]
[359126580,1745722242125,-400.0,0.00017534,2]
[359126581,1745722242135,-400.0,0.00017534,2]
[359126582,1745722242144,-400.0,0.00017534,2]
[359126583,1745722242154,-400.0,0.00017534,2]
[359126584,1745722242163,-400.0,0.00017534,2]
[359126585,1745722242174,-403.7,0.00017534,2]
[359126586,1745722242184,-400.0,0.00017534,2]
[359126587,1745722242193,-400.0,0.00017534,2]
[359126588,1745722242203,-400.0,0.00017534,2]
[359126589,1745722242213,-400.0,0.00017534,2]
[359126590,1745722242222,-400.0,0.00017534,2]
[359126591,1745722242231,-400.0,0.00017534,2]
[359126592,1745722242240,-400.0,0.00017534,2]
[359126593,1745722242249,-400.0,0.00017534,2]
[359126594,1745722242259,-400.0,0.00017534,2]
[359126595,1745722242269,-856.04,0.00017534,2]
[359126596,1745722242278,-400.0,0.00017534,2]
[359126597,1745722242288,-400.0,0.00017534,2]
[359126598,1745722242298,-558.03,0.00017534,2]
[359126599,1745722242310,-400.0,0.00017534,2]
[359126600,1745722242320,-400.0,0.00017534,2]
[359126601,1745722242329,-400.0,0.00017534,2]
[359126602,1745722242339,-500.0,0.00017534,2]
[359126603,1745722242349,-797.05,0.00017534,2]
[359126604,1745722242359,-400.0,0.00017534,2]
[359126605,1745722242369,-400.0,0.00017534,2]
[359126606,1745722242379,-400.0,0.00017534,2]
[359126607,1745722242389,-400.0,0.00017534,2]
[359126608,1745722242400,-400.0,0.00017534,2]
[359126610,1745722242412,-350.26741418,0.00017534,2]
[359126611,1745722242422,-400.0,0.00017534,2]
[359126613,1745722242434,-1899.42,0.00017534,2]
[359126614,1745722242443,-400.0,0.00017534,2]
[359126615,1745722242455,-400.0,0.00017534,2]
[359126617,1745722242464,-728.92,0.00017534,2]
[359126618,1745722242475,-400.0,0.00017534,2]
[359126619,1745722242485,-400.0,0.00017534,2]
[359126620,1745722242496,-400.0,0.00017534,2]
[359126635,1745722242658,-400.0,0.00017534,2]
[359126636,1745722242669,-612.11,0.00017534,2]
[359126637,1745722242678,-839.52,0.00017534,2]
[359126638,1745722242688,-400.0,0.00017534,2]
[359126639,1745722242698,-354.671118,0.00017616,2]
[359126640,1745722242707,-329.84488502,0.00017693,2]
[359126641,1745722242716,-400.0,0.00017808,2]
[359126642,1745722242726,-300.0,0.00017808,2]
[359126643,1745722242735,-400.0,0.00017808,2]
[359126644,1745722242745,-400.0,0.00017808,2]
[359126645,1745722242754,-400.0,0.00017808,2]
[359126646,1745722242764,-249.4727666,0.00017808,2]
[359126647,1745722242773,-400.0,0.00017808,2]
[359126648,1745722242782,-403.7,0.00017808,2]
[359126649,1745722242792,-400.0,0.00017808,2]
[359126650,1745722242804,-400.0,0.00017808,2]
[359126651,1745722242814,-400.0,0.00017808,2]
[359126652,1745722242824,-400.0,0.00017808,2]
[359126653,1745722242834,-400.0,0.00017808,2]
[359126654,1745722242844,-400.0,0.00017808,2]
[359126655,1745722242854,-400.0,0.00017808,2]
[359126656,1745722242863,-400.0,0.00017808,2]
[359126657,1745722242872,-856.04,0.00017808,2]
[359126658,1745722242882,-400.0,0.00017808,2]
[359126659,1745722242891,-400.0,0.00017808,2]
[359126660,1745722242900,-558.03,0.00017808,2]
[359126661,1745722242910,-400.0,0.00017808,2]
[359126662,1745722242919,-400.0,0.00017808,2]
[359126663,1745722242929,-400.0,0.00017808,2]
[359126664,1745722242938,-797.05,0.00017808,2]
[359126665,1745722242948,-400.0,0.00017808,2]
[359126666,1745722242957,-208.95091825,0.00017808,2]
[359126667,1745722242967,-400.0,0.00017808,2]
[359126668,1745722242977,-400.0,0.00017808,2]
[359126669,1745722242986,-400.0,0.00017808,2]
[359126670,1745722242995,-400.0,0.00017808,2]
[359126671,1745722243005,-1899.42,0.00017808,2]
[359126672,1745722243015,-400.0,0.00017808,2]
[359126673,1745722243024,-400.0,0.00017808,2]
[359126674,1745722243034,-728.92,0.00017808,2]
[359126675,1745722243044,-400.0,0.00017808,2]
[359126676,1745722243056,-400.0,0.00017808,2]
[359126677,1745722243067,-612.11,0.00017808,2]
[359126678,1745722243078,-839.52,0.00017808,2]
[359126679,1745722243089,-400.0,0.00017808,2]
[359126680,1745722243101,-1825.34671483,0.00017934,2]
[359126681,1745722243112,-400.0,0.00018082,2]
[359126682,1745722243122,-400.0,0.00018082,2]
[359126683,1745722243133,-400.0,0.00018082,2]
[359126684,1745722243143,-400.0,0.00018082,2]
[359126685,1745722243153,-400.0,0.00018082,2]
[359126686,1745722243164,-403.7,0.00018082,2]
[359126687,1745722243174,-400.0,0.00018082,2]
[359126689,1745722243184,-400.0,0.00018082,2]
[359126690,1745722243194,-400.0,0.00018082,2]
[359126691,1745722243203,-400.0,0.00018082,2]
[359126692,1745722243213,-400.0,0.00018082,2]
[359126693,1745722243222,-856.04,0.00018082,2]
[359126694,1745722243232,-400.0,0.00018082,2]
[359126695,1745722243244,-400.0,0.00018082,2]
[359126696,1745722243255,-558.03,0.00018082,2]
[359126697,1745722243266,-200.98,0.00018082,2]
[359126698,1745722243276,-400.0,0.00018082,2]
[359126699,1745722243287,-400.0,0.00018082,2]
[359126700,1745722243299,-797.05,0.00018082,2]
[359126701,1745722243311,-400.0,0.00018082,2]
[359126702,1745722243321,-378.64100224,0.00018082,2]
[359126703,1745722243331,-400.0,0.00018082,2]
[359126704,1745722243341,-400.0,0.00018082,2]
[359126705,1745722243350,-400.0,0.00018082,2]
[359126706,1745722243360,-1899.42,0.00018082,2]
[359126707,1745722243370,-400.0,0.00018082,2]
[359126708,1745722243380,-400.0,0.00018082,2]
[359126709,1745722243389,-728.92,0.00018082,2]
[359126710,1745722243399,-400.0,0.00018082,2]
[359126711,1745722243408,-458.44793387,0.00018082,2]
[359126712,1745722243418,-612.11,0.00018082,2]
[359126713,1745722243428,-839.52,0.00018082,2]
[359126714,1745722243438,-400.0,0.00018082,2]
[359126715,1745722243447,-400.0,0.00018356,2]
[359126716,1745722243457,-400.0,0.00018356,2]
[359126717,1745722243466,-400.0,0.00018356,2]
[359126718,1745722243476,-403.7,0.00018356,2]
[359126719,1745722243487,-304.89009149,0.00018356,2]
[359126720,1745722243497,-400.0,0.00018356,2]
[359126721,1745722243507,-400.0,0.00018356,2]
[359126722,1745722243516,-400.0,0.00018356,2]
[359126723,1745722243527,-500.0,0.00018356,2]
[359126724,1745722243536,-856.04,0.00018356,2]
[359126725,1745722243546,-333.12,0.00018356,2]
[359126726,1745722243562,-400.0,0.00018356,2]
[359126727,1745722243572,-558.03,0.00018356,2]
[359126728,1745722243581,-400.37491866,0.00018356,2]
[359126729,1745722243591,-400.0,0.00018356,2]
[359126730,1745722243600,-797.05,0.00018356,2]
[359126731,1745722243610,-400.0,0.00018356,2]
[359126732,1745722243619,-400.0,0.00018356,2]
[359126733,1745722243629,-400.0,0.00018356,2]
[359126734,1745722243641,-400.0,0.00018356,2]
[359126735,1745722243652,-1899.42,0.00018356,2]
[359126736,1745722243663,-400.0,0.00018356,2]
[359126737,1745722243673,-400.0,0.00018356,2]
[359126738,1745722243683,-728.92,0.00018356,2]
[359126739,1745722243692,-400.0,0.00018356,2]
[359126741,1745722243702,-612.11,0.00018356,2]
[359126742,1745722243711,-839.52,0.00018356,2]
[359126743,1745722243720,-442.92425404,0.00018356,2]
[359126744,1745722243730,-329.84488502,0.00018486,2]
[359126745,1745722243740,-400.0,0.0001863,2]
[359126746,1745722243750,-400.0,0.0001863,2]
[359126747,1745722243760,-400.0,0.0001863,2]
[359126748,1745722243769,-403.7,0.0001863,2]
[359126749,1745722243779,-400.0,0.0001863,2]
[359126750,1745722243789,-400.0,0.0001863,2]
[359126751,1745722243798,-400.0,0.0001863,2]
[359126752,1745722243810,-856.04,0.0001863,2]
[359126753,1745722243819,-400.0,0.0001863,2]
[359126754,1745722243829,-558.03,0.0001863,2]
[359126755,1745722243839,-400.0,0.0001863,2]
[359126756,1745722243848,-797.05,0.0001863,2]
[359126757,1745722243857,-400.0,0.0001863,2]
[359126758,1745722243867,-400.0,0.0001863,2]
[359126759,1745722243876,-400.0,0.0001863,2]
[359126760,1745722243885,-400.0,0.0001863,2]
[359126761,1745722243894,-1899.42,0.0001863,2]
[359126762,1745722243904,-400.0,0.0001863,2]
[359126763,1745722243913,-400.0,0.0001863,2]
[359126764,1745722243922,-728.92,0.0001863,2]
[359126765,1745722243931,-400.0,0.0001863,2]
[359126766,1745722243941,-612.11,0.0001863,2]
[359126767,1745722243950,-839.52,0.0001863,2]
[359126768,1745722243959,-400.0,0.00018904,2]
[359126769,1745722243969,-400.0,0.00018904,2]
[359126770,1745722243978,-400.0,0.00018904,2]
[359126771,1745722243988,-403.7,0.00018904,2]
[359126772,1745722243997,-400.0,0.00018904,2]
[359126773,1745722244006,-400.0,0.00018904,2]
[359126774,1745722244016,-400.0,0.00018904,2]
[359126775,1745722244026,-856.04,0.00018904,2]
[359126776,1745722244035,-400.0,0.00018904,2]
[359126777,1745722244045,-558.03,0.00018904,2]
[359126778,1745722244054,-400.0,0.00018904,2]
[359126779,1745722244064,-797.05,0.00018904,2]
[359126780,1745722244074,-400.0,0.00018904,2]
[359126781,1745722244083,-500.0,0.00018904,2]
[359126782,1745722244093,-400.0,0.00018904,2]
[359126783,1745722244102,-400.0,0.00018904,2]
[359126784,1745722244112,-1899.42,0.00018904,2]
[359126785,1745722244121,-400.0,0.00018904,2]
[359126786,1745722244131,-400.0,0.00018904,2]
[359126787,1745722244142,-728.92,0.00018904,2]
[359126788,1745722244152,-400.0,0.00018904,2]
[359126789,1745722244163,-612.11,0.00018904,2]
[359126790,1745722244174,-839.52,0.00018904,2]
[359126791,1745722244184,-400.0,0.00019178,2]
[359126792,1745722244194,-400.0,0.00019178,2]
[359126793,1745722244204,-400.0,0.00019178,2]
[359126794,1745722244215,-403.7,0.00019178,2]
[359126795,1745722244226,-400.0,0.00019178,2]
[359126796,1745722244238,-400.0,0.00019178,2]
[359126797,1745722244248,-400.0,0.00019178,2]
[359126798,1745722244258,-856.04,0.00019178,2]
[359126799,1745722244267,-300.0,0.00019178,2]
[359126800,1745722244277,-558.03,0.00019178,2]
[359126801,1745722244287,-400.0,0.00019178,2]
[359126802,1745722244298,-797.05,0.00019178,2]
[359126803,1745722244308,-400.0,0.00019178,2]
[359126804,1745722244319,-400.0,0.00019178,2]
[359126805,1745722244329,-400.0,0.00019178,2]
[359126806,1745722244339,-1899.42,0.00019178,2]
[359126807,1745722244348,-400.0,0.00019178,2]
[359126808,1745722244359,-400.0,0.00019178,2]
[359126809,1745722244369,-728.92,0.00019178,2]
[359126810,1745722244379,-400.0,0.00019178,2]
[359126811,1745722244389,-612.11,0.00019178,2]
[359126812,1745722244400,-839.52,0.00019178,2]
[359126813,1745722244411,-300.0,0.00019178,2]
[359126814,1745722244422,-1825.34671483,0.00019256,2]
[359126815,1745722244432,-329.84488502,0.00019279,2]
[359126816,1745722244443,-400.0,0.00019452,2]
[359126817,1745722244452,-400.0,0.00019452,2]
[359126818,1745722244462,-400.0,0.00019452,2]
[359126819,1745722244473,-403.7,0.00019452,2]
[359126820,1745722244485,-400.0,0.00019452,2]
[359126821,1745722244495,-400.0,0.00019452,2]
[359126822,1745722244505,-400.0,0.00019452,2]
[359126823,1745722244515,-856.04,0.00019452,2]
[359126824,1745722244525,-558.03,0.00019452,2]
[359126825,1745722244534,-400.0,0.00019452,2]
[359126826,1745722244544,-797.05,0.00019452,2]
[359126827,1745722244558,-400.0,0.00019452,2]
[359126828,1745722244568,-400.0,0.00019452,2]
[359126829,1745722244578,-400.0,0.00019452,2]
[359126830,1745722244588,-1899.42,0.00019452,2]
[359126831,1745722244598,-400.0,0.00019452,2]
[359126832,1745722244608,-400.0,0.00019452,2]
[359126833,1745722244618,-728.92,0.00019452,2]
[359126834,1745722244627,-400.0,0.00019452,2]
[359126835,1745722244637,-612.11,0.00019452,2]
[359126836,1745722244647,-839.52,0.00019452,2]
[359126837,1745722244656,-179.80060243,0.00019687,2]
[359126838,1745722244665,-400.0,0.00019726,2]
[359126839,1745722244674,-400.0,0.00019726,2]
[359126840,1745722244684,-400.0,0.00019726,2]
[359126841,1745722244693,-403.7,0.00019726,2]
[359126842,1745722244702,-400.0,0.00019726,2]
[359126843,1745722244711,-524.07113811,0.00019726,2]
[359126844,1745722244721,-400.0,0.00019726,2]
[359126845,1745722244731,-856.04,0.00019726,2]
[359126846,1745722244740,-558.03,0.00019726,2]
[359126847,1745722244750,-400.0,0.00019726,2]
[359126848,1745722244759,-797.05,0.00019726,2]
[359126849,1745722244768,-400.0,0.00019726,2]
[359126850,1745722244777,-400.0,0.00019726,2]
[359126851,1745722244786,-400.0,0.00019726,2]
[359126852,1745722244796,-1899.42,0.00019726,2]
[359126853,1745722244805,-400.0,0.00019726,2]
[359126854,1745722244815,-400.0,0.00019726,2]
[359126855,1745722244824,-728.92,0.00019726,2]
[359126856,1745722244833,-400.0,0.00019726,2]
[359126857,1745722244843,-612.11,0.00019726,2]
[359126858,1745722244852,-839.52,0.00019726,2]
[359126859,1745722244862,-400.0,0.0002,2]
[359126860,1745722244871,-400.0,0.0002,2]
[359126861,1745722244881,-400.0,0.0002,2]
[359126862,1745722244890,-403.7,0.0002,2]
[359126863,1745722244900,-400.0,0.0002,2]
[359126864,1745722244909,-400.0,0.0002,2]
[359126865,1745722244919,-856.04,0.0002,2]
[359126866,1745722244929,-558.03,0.0002,2]
[359126867,1745722244938,-400.0,0.0002,2]
[359126868,1745722244948,-797.05,0.0002,2]
[359126869,1745722244957,-400.0,0.0002,2]
[359126870,1745722244967,-400.0,0.0002,2]
[359126871,1745722244977,-400.0,0.0002,2]
[359126872,1745722244986,-1899.42,0.0002,2]
[359126873,1745722244995,-400.0,0.0002,2]
[359126874,1745722245004,-400.0,0.0002,2]
[359126875,1745722245014,-728.92,0.0002,2]
[359126876,1745722245023,-400.0,0.0002,2]
[359126877,1745722245033,-612.11,0.0002,2]
[359126878,1745722245042,-839.52,0.0002,2]
[359126879,1745722245051,-329.84488502,0.00020072,2]
[359126880,1745722245062,-400.0,0.00020273,2]
[359126881,1745722245072,-436.7,0.00020273,2]
[359126882,1745722245081,-400.0,0.00020273,2]
[359126883,1745722245090,-403.7,0.00020273,2]
[359126884,1745722245099,-400.0,0.00020273,2]
[359126885,1745722245109,-405.46801422,0.00020273,2]
[359126886,1745722245119,-856.04,0.00020273,2]
[359126887,1745722245129,-558.03,0.00020273,2]
[359126888,1745722245138,-400.0,0.00020273,2]
[359126889,1745722245147,-797.05,0.00020273,2]
[359126890,1745722245156,-165.03019027,0.00020273,2]
[359126891,1745722245166,-400.0,0.00020273,2]
[359126892,1745722245175,-400.0,0.00020273,2]
[359126893,1745722245184,-1899.42,0.00020273,2]
[359126894,1745722245193,-400.0,0.00020273,2]
[359126895,1745722245202,-400.0,0.00020273,2]
[359126896,1745722245211,-728.92,0.00020273,2]
[359126897,1745722245220,-198.56400661,0.00020273,2]
[359126898,1745722245230,-612.11,0.00020273,2]
[359126899,1745722245239,-839.52,0.00020273,2]
[359126900,1745722245249,-400.0,0.00020547,2]
[359126901,1745722245258,-216.83611393,0.00020547,2]
[359126902,1745722245268,-403.7,0.00020547,2]
[359126903,1745722245277,-400.0,0.00020547,2]
[359126904,1745722245287,-856.04,0.00020547,2]
[359126905,1745722245296,-558.03,0.00020547,2]
[359126906,1745722245306,-400.0,0.00020547,2]
[359126907,1745722245316,-797.05,0.00020547,2]
[359126908,1745722245326,-400.0,0.00020547,2]
[359126909,1745722245335,-400.0,0.00020547,2]
[359126910,1745722245344,-1899.42,0.00020547,2]
[359126911,1745722245354,-479.15935884,0.00020547,2]
[359126912,1745722245363,-400.0,0.00020547,2]
[359126913,1745722245372,-728.92,0.00020547,2]
[359126914,1745722245382,-612.11,0.00020547,2]
[359126915,1745722245392,-839.52,0.00020547,2]
[359126916,1745722245401,-1825.34671483,0.00020578,2]
[359126917,1745722245411,-239.006801,0.000208,2]
[359126918,1745722245423,-400.0,0.00020821,2]
[359126919,1745722245432,-403.7,0.00020821,2]
[359126921,1745722245442,-400.0,0.00020821,2]
[359126922,1745722245452,-856.04,0.00020821,2]
[359126923,1745722245462,-558.03,0.00020821,2]
[359126924,1745722245472,-400.0,0.00020821,2]
[359126925,1745722245482,-797.05,0.00020821,2]
[359126926,1745722245492,-400.0,0.00020821,2]
[359126927,1745722245502,-400.0,0.00020821,2]
[359126928,1745722245512,-1899.42,0.00020821,2]
[359126929,1745722245522,-400.0,0.00020821,2]
[359126930,1745722245532,-728.92,0.00020821,2]
[359126931,1745722245542,-612.11,0.00020821,2]
[359126932,1745722245555,-839.52,0.00020821,2]
[359126933,1745722245565,-600.0,0.00020822,2]
[359126934,1745722245575,-329.84488502,0.00020866,3]
[359126935,1745722245584,-157.46,0.00021,2]
[359126936,1745722245594,-239.0068011,0.00021081,2]
[359126937,1745722245604,-400.0,0.00021095,2]
[359126938,1745722245614,-403.7,0.00021095,2]
[359126939,1745722245623,-400.0,0.00021095,2]
[359126940,1745722245635,-856.04,0.00021095,2]
[359126941,1745722245645,-558.03,0.00021095,2]
[359126942,1745722245655,-400.0,0.00021095,2]
[359126943,1745722245664,-797.05,0.00021095,2]
[359126944,1745722245674,-400.0,0.00021095,2]
[359126945,1745722245683,-400.0,0.00021095,2]
[359126946,1745722245692,-1899.42,0.00021095,2]
[359126947,1745722245702,-169.50331472,0.00021095,2]
[359126948,1745722245711,-728.92,0.00021095,2]
[359126949,1745722245721,-612.11,0.00021095,2]
[359126950,1745722245731,-839.52,0.00021095,2]
[359126951,1745722245740,-900.0,0.00021164,2]
[359126952,1745722245752,-545.0,0.00021343,2]
[359126953,1745722245762,-706.0,0.00021343,2]
[359126954,1745722245772,-2247.0,0.00021343,2]
[359126955,1745722245782,-500.0,0.00021367,2]
[359126956,1745722245792,-500.0,0.00021367,2]
[359126957,1745722245802,-400.0,0.00021369,2]
[359126958,1745722245813,-403.7,0.00021369,2]
[359126959,1745722245822,-400.0,0.00021369,2]
[359126960,1745722245831,-856.04,0.00021369,2]
[359126961,1745722245842,-558.03,0.00021369,2]
[359126962,1745722245856,-400.0,0.00021369,2]
[359126963,1745722245865,-797.05,0.00021369,2]
[359126964,1745722245875,-400.0,0.00021369,2]
[359126965,1745722245888,-267.32219629,0.00021369,2]
[359126966,1745722245897,-1899.42,0.00021369,2]
[359126967,1745722245906,-728.92,0.00021369,2]
[359126968,1745722245916,-612.11,0.00021369,2]
[359126969,1745722245926,-839.52,0.00021369,2]
[359126970,1745722245936,-216.58565115,0.00021466,2]
[359126971,1745722245946,-372.94,0.000215,2]
[359126972,1745722245955,-400.0,0.00021643,2]
[359126973,1745722245965,-403.7,0.00021643,2]
[359126974,1745722245974,-400.0,0.00021643,2]
[359126975,1745722245984,-856.04,0.00021643,2]
[359126976,1745722245993,-558.03,0.00021643,2]
[359126977,1745722246002,-400.0,0.00021643,2]
[359126978,1745722246012,-797.05,0.00021643,2]
[359126979,1745722246021,-400.0,0.00021643,2]
[359126981,1745722246030,-1899.42,0.00021643,2]
[359126982,1745722246041,-728.92,0.00021643,2]
[359126983,1745722246051,-612.11,0.00021643,2]
[359126984,1745722246061,-839.52,0.00021643,2]
[359126985,1745722246072,-329.84488502,0.00021659,3]
[359126986,1745722246081,-1000.0,0.000218,4]
[359126987,1745722246223,-3959.02,0.000219,2]
[359126988,1745722246233,-1825.34671483,0.000219,2]
[359126989,1745722246244,-634.0,0.000219,2]
[359126990,1745722246253,-400.0,0.00021917,2]
[359126991,1745722246263,-160.0,0.00021917,2]
[359126992,1745722246272,-403.7,0.00021917,2]
[359126993,1745722246281,-276.1,0.00021917,2]
[359126994,1745722246291,-856.04,0.00021917,2]
[359126995,1745722246301,-558.03,0.00021917,2]
[359126996,1745722246311,-400.0,0.00021917,2]
[359126997,1745722246320,-797.05,0.00021917,2]